Cogmind - Beta 13 @@@ ROGUE MODE // 2024.04.01 @ 22:49:52 Player: Cmdr.Laserstrahl Result: Destroyed by G-47 Trooper with Particle Gun Performance ------------- Evolutions (2) 1000 Regions Visited (3) 600 Robots Destroyed (53) 265 Value Destroyed (1139) 1139 Prototype IDs (8) 160 Alien Tech Used (0) 0 Bonus (24) 24 TOTAL SCORE: 3188 Bonus ------- High Alert Combat Kills 24 Cogmind --------- Core Integrity 0/550 Matter 298/300 Energy 100/100 System Corruption 0% Temperature Warning (309) Movement Core (700) Ox13 Location -8/Materials Parts ------- > --- POWER (1) -------- (None) > --- PROPULSION (2) --- (None) > --- UTILITY (6) ------ High-capacity Storage Unit > --- WEAPON (2) ------- Light Assault Rifle > --- INVENTORY (20) --- Light Nuclear Core Armored Treads Carbon-fiber Leg Carbon-fiber Leg Wheel Medium Battery (150) Medium Matter Pod (100) Structural Scanner Advanced Visual Processing Unit Sensor Array Signal Interpreter Hacking Suite System Shield Peak State ------------ > --- POWER ------------ Light Nuclear Core > --- PROPULSION ------- Wheel Armored Wheel > --- UTILITY ---------- High-capacity Storage Unit Machine Analyzer Improved Terrain Scanner Terrain Scan Processor Seismic Detector Improved Light Armor Plating > --- WEAPON ----------- Light EM Pulse Cannon Minigun > --- INVENTORY -------- Ion Engine Armored Treads Carbon-fiber Leg Wheel Compact Wheel Armored Wheel Medium Battery Medium Matter Pod Structural Scanner Advanced Visual Processing Unit Sensor Array Signal Interpreter Medium Armor Plating Hardened Light Armor Plating Hacking Suite System Shield Light EM Pulse Cannon Mining Laser [Rating: 27] Favorites ----------- Power Ion Engine Engine Ion Engine Power Core Light Nuclear Core Propulsion Wheel Wheel Wheel Utility Seismic Detector Device Seismic Detector Storage High-capacity Storage Unit Processor Machine Analyzer Protection Medium Armor Plating Weapon Improved Light Cannon Energy Gun Field Laser Energy Cannon Light EM Pulse Cannon Ballistic Gun Light Assault Rifle Ballistic Cannon Improved Light Cannon Special Weapon Mining Laser Build | -11 -10 -9 -8 ------- Run | Yrd Mat Mat Mat Slots Evolved 4 | . . 2 2 Power . | . . . . Propulsion . | . . . . Utility 4 | . . 2 2 Weapon . | . . . . Parts Attached 52 | 7 8 13 24 Power 6 | 1 1 . 4 Engine 4 | 1 1 . 2 Core 2 | . . . 2 Reactor . | . . . . Propulsion 11 | 2 3 2 4 Treads . | . . . . Leg . | . . . . Wheel 11 | 2 3 2 4 Hover . | . . . . Flight . | . . . . Utility 15 | 2 2 5 6 Device 6 | 1 . 3 2 Storage 3 | 1 2 . . Processor 2 | . . 1 1 Hackware . | . . . . Protection 4 | . . 1 3 Artifact . | . . . . Weapon 20 | 2 2 6 10 Energy Gun 5 | 1 . 2 2 Energy Cannon 5 | . . 2 3 Ballistic Gun 5 | 1 . 1 3 Ballistic Cannon 3 | . 2 1 . Launcher . | . . . . Special Weapon 2 | . . . 2 Impact Weapon . | . . . . Slashing Weapon . | . . . . Piercing Weapon . | . . . . Special Melee Weapon . | . . . . Unidentified Prototypes . | . . . . Parts Lost 27 | . . 2 25 Power 5 | . . . 5 Propulsion 7 | . . 1 6 Utility 8 | . . . 8 Weapon 7 | . . 1 6 Highest Loss Streak 13 | . . 1 13 To Critical Strikes . | . . . . Average Slot Usage (%) 95 | . 100 99 83 Engine 10 | . 14 11 4 Wheel 22 | . 28 21 16 Device 16 | . 14 20 14 Storage 11 | . 14 11 9 Processor 7 | . . 11 15 Protection 2 | . . 1 6 Energy Gun 4 | . 3 5 4 Energy Cannon 3 | . . 7 2 Ballistic Gun 3 | . 3 2 7 Ballistic Cannon 10 | . 21 6 . Naked Turns . | . . . . Heaviest Build 61 | 11 54 61 60 Greatest Support 28 | 20 20 20 28 Greatest Overweight (x) 4 | . 2 3 4 Average Overweight (x) 1 | . 1 2 1 Largest Inventory Capacity 20 | 8 20 20 20 Average Capacity 18 | 7 16 20 20 Most Carried 20 | 6 20 20 20 Average Carried 15 | 2 13 19 17 Final Capacity 20 | 8 20 20 20 Final Carried 20 | 6 20 20 13 Class Distribution -------------------- 46% | Mutant 42% | Scavenger-Mutant 11% | Scavenger-Skirmisher Dominant Class ---------------- Mutant | -10/Materials Scavenger-Mutant | -9/Materials Scavenger-Skirmisher | -8/Materials Resources | -11 -10 -9 -8 ----------- Run | Yrd Mat Mat Mat Matter Collected 1294 | 284 452 307 251 Remotely . | . . . . Salvage Created 1741 | 118 481 691 451 Parts 99 | 9 36 40 14 Haulers Intercepted 2 | . 2 . . Recyclers Shooed 2 | . 1 1 . Parts Field Recycled . | . . . . Retrieved Matter . | . . . . Parts Self-Destructed . | . . . . Prevented . | . . . . Kills | -11 -10 -9 -8 ------- Run | Yrd Mat Mat Mat Combat Hostiles Destroyed 30 | . 8 15 7 Guns 12 | . 1 6 5 Cannons 18 | . 7 9 2 Classes Destroyed 12 | 2 7 2 1 Worker 1 | . . 1 . Builder 4 | . 4 . . Tunneler 2 | 2 . . . Hauler 2 | . 2 . . Recycler 6 | 1 2 2 1 Mechanic 1 | . 1 . . Operator 2 | . 1 . 1 Watcher 5 | . 2 2 1 Swarmer 11 | . 3 7 1 Grunt 13 | . 5 3 5 Sentry 5 | . . 5 . Hunter 1 | . . . 1 Best Kill Streak 6 | 2 6 6 4 Combat Bots Only 4 | . 2 3 4 Max Kills in Single Turn 2 | 1 2 1 1 Gunslinging . | . . . . Exploded . | . . . . Melee . | . . . . Uniques/NPCs Destroyed . | . . . . Combat | -11 -10 -9 -8 -------- Run | Yrd Mat Mat Mat Hostile Shots Fired 327 | . 48 50 229 Missed 85 | . 11 18 56 Damage Taken 3151 | . 353 323 2475 Core 678 | . 64 63 551 Absorbed by Shields . | . . . . Core Remaining (%) 86 | 100 74 84 . Volleys Fired 156 | 14 61 44 37 Largest 2 | 2 2 2 2 Hottest 119 | 60 78 119 100 Shots Fired 297 | 28 121 83 65 Gun 147 | 28 35 34 50 Cannon 148 | . 86 49 13 Launcher . | . . . . Special 2 | . . . 2 Kinetic 189 | 14 104 37 34 Thermal 76 | 14 17 27 18 Explosive . | . . . . Electromagnetic 32 | . . 19 13 Robot Hit Streak 11 | 8 6 10 11 Robot Miss Streak 7 | 3 4 7 3 Penetration Max . | . . . . Secondary Targets 1 | . . . 1 Max Gunslinging Chain 1 | . . . 1 Shots Hit Robots 168 | 17 63 41 47 Core Hits 75 | 5 25 24 21 Critical Kills . | . . . . Critical Parts Destroyed . | . . . . Critical Strikes 7 | . 4 1 2 Burn 2 | . . . 2 Blast 4 | . 4 . . Corrupt 1 | . . 1 . Melee Attacks . | . . . . Impact . | . . . . Slashing . | . . . . Piercing . | . . . . Sneak Attacks . | . . . . Combat Hostiles . | . . . . Follow-up Attacks . | . . . . Damage Inflicted 2929 | 171 1077 849 832 Guns 1201 | 171 212 265 553 Cannons 1683 | . 865 584 234 Explosions . | . . . . Melee . | . . . . Ramming 21 | . . . 21 Kinetic 1722 | 57 943 379 343 Thermal 704 | 114 134 222 234 Explosive . | . . . . Electromagnetic 482 | . . 248 234 Impact . | . . . . Slashing . | . . . . Piercing . | . . . . Highest Corruption 1 | . 1 . . Average Corruption 1 | . 1 . . Corruption Purged . | . . . . Corruption Blocked . | . . . . Effects 5 | . 5 . . Message Errors 1 | . 1 . . Heat Flow Errors 1 | . 1 . . Energy Discharges 1 | . 1 . . Parts Rejected 1 | . 1 . . Data Loss (minor) 1 | . 1 . . Overload Shots . | . . . . Overflow Damage 17 | . 17 . . Projectiles 17 | . 17 . . Explosions . | . . . . Melee . | . . . . Knockbacks 12 | . 9 3 . Impact . | . . . . Kinetic 12 | . 9 3 . Secondary . | . . . . Self-Inflicted Damage 9 | . . . 9 Shots . | . . . . Rammed 4 | . . . 4 Targets Rammed 4 | . . . 4 Kicked . | . . . . Crushed . | . . . . Highest Temperature 330 | 40 192 139 330 Average Temperature 72 | 20 68 43 126 Received Heat Transfer 1455 | . 111 57 1287 Effects 3 | . . . 3 Interference 3 | . . . 3 Siege Activations . | . . . . Robots Corrupted . | . . . . Combat Hostiles . | . . . . Parts Fried 4 | . . 1 3 Impact Corruptions . | . . . . Robots Melted . | . . . . Combat Hostiles . | . . . . Parts Melted 2 | . . . 2 Heat Transferred 1710 | 250 300 481 679 Parts Sabotaged . | . . . . Parts Stolen . | . . . . Parts Stripped . | . . . . Power Chain Reactions . | . . . . Alert | -11 -10 -9 -8 ------- Run | Yrd Mat Mat Mat Peak Influence 553 | 15 235 553 389 Initial 233 | . 9 76 233 Average 215 | 4 92 325 284 Maximum Alert Level 2 | . 1 2 1 Low Security (%) 53 | 100 97 26 17 Level 1 34 | . 2 37 82 Level 2 12 | . . 35 . Level 3 . | . . . . Level 4 . | . . . . Level 5 . | . . . . High Security . | . . . . Max Security . | . . . . Squads Dispatched 8 | . 1 3 4 Investigation 3 | . . 2 1 Extermination . | . . . . Reinforcement 5 | . 1 1 3 Assault . | . . . . Garrison . | . . . . Intercept . | . . . . Searches Triggered . | . . . . Construction Impeded . | . . . . Haulers Reinforced . | . . . . Active Scanning Responses . | . . . . Cargo Convoy Interrupts . | . . . . Stealth | -11 -10 -9 -8 --------- Run | Yrd Mat Mat Mat Distress Signals 4 | . . 2 2 Communications Jammed . | . . . . Distress Signals . | . . . . Times Spotted 60 | . 15 27 18 Peak Tracking Total 8 | . 5 5 8 Tactical Retreats 6 | . 1 3 2 Traps | -11 -10 -9 -8 ------- Run | Yrd Mat Mat Mat Traps Triggered 3 | . 1 2 . Indirectly . | . . . . Trap Hack Attempts . | . . . . Triggered . | . . . . Disarmed . | . . . . Reprogrammed . | . . . . Reused . | . . . . Traps Extracted . | . . . . Installed . | . . . . Triggered . | . . . . Machines | -11 -10 -9 -8 ---------- Run | Yrd Mat Mat Mat Machines Disabled 4 | . 1 2 1 Max in Single Turn 1 | . 1 1 1 Machines Repaired . | . . . . Machines Dismantled . | . . . . Machines Sabotaged . | . . . . Overloaded Fab Kills . | . . . . Hacking | -11 -10 -9 -8 --------- Run | Yrd Mat Mat Mat Machines Accessed 18 | . 8 7 3 Terminals 14 | . 6 6 2 Fabricators . | . . . . Repair Stations . | . . . . Recycling Units 2 | . 2 . . Scanalyzers 2 | . . 1 1 Garrison Access . | . . . . Total Hacks 69 | . 21 33 15 Successful 51 | . 12 25 14 Failed 18 | . 9 8 1 Catastrophic 1 | . 1 . . Database Lockouts . | . . . . Manual 31 | . 9 15 7 Terminals 47 | . 18 23 6 Fabricators . | . . . . Repair Stations . | . . . . Recycling Units 3 | . 3 . . Scanalyzers 19 | . . 10 9 Garrison Access . | . . . . Terminal Hacks 14 | . 4 9 1 Prototype ID Bank 4 | . 2 2 . Level Access Points 1 | . . 1 . Terminal Index 1 | . . 1 . Scanalyzer Index 1 | . . 1 . Locate Traps 5 | . 2 2 1 Hauler Manifests 1 | . . 1 . Zone Layout 1 | . . 1 . Fabricator Hacks . | . . . . Repair Station Hacks . | . . . . Recycling Unit Hacks 2 | . 2 . . Report Inventory 2 | . 2 . . Scanalyzer 17 | . . 9 8 Insert Component 8 | . . 4 4 Analyze 9 | . . 5 4 Garrison Access Hacks . | . . . . Unauthorized Hacks 18 | . 6 7 5 Terminals 15 | . 5 6 4 Track 3 | . . 1 2 Botnet 12 | . 5 5 2 Fabricators . | . . . . Repair Stations . | . . . . Recycling Units 1 | . 1 . . Mask 1 | . 1 . . Scanalyzers 2 | . . 1 1 Extract 2 | . . 1 1 Garrison Access . | . . . . Data Cores Recovered . | . . . . Used . | . . . . Hacking Detections 15 | . 6 7 2 Full Trace Events . | . . . . Feedback Events . | . . . . Feedback Blocked . | . . . . Robot Schematics Acquired . | . . . . Robots Built . | . . . . Authchips . | . . . . Time . | . . . . Total Robot Build Rating . | . . . . Part Schematics Acquired 18 | . . 8 10 Parts Built . | . . . . Authchips . | . . . . Time . | . . . . Total Part Build Rating . | . . . . Parts Repaired . | . . . . Time . | . . . . Parts Recycled . | . . . . Recycled Matter . | . . . . Retrieved Matter . | . . . . Retrieved Components . | . . . . Parts Scanalyzed 8 | . . 4 4 Part Schematics Acquired 8 | . . 4 4 Parts Damaged . | . . . . Bothacking | -11 -10 -9 -8 ------------ Run | Yrd Mat Mat Mat Used RIF Installer . | . . . . Robots Hacked . | . . . . Non-combat . | . . . . Combat . | . . . . Robot Hacks Applied . | . . . . Relay Couplers Released . | . . . . Fabnet Peak Effective % . | . . . . Robots Rewired . | . . . . Allies Hacked . | . . . . Hacks Repelled . | . . . . Allies | -11 -10 -9 -8 -------- Run | Yrd Mat Mat Mat Total Allies . | . . . . Largest Group . | . . . . Highest-Rated Group . | . . . . Highest-Rated Ally . | . . . . Total Orders . | . . . . Ally Attacks . | . . . . Total Damage . | . . . . Kills . | . . . . Allies Corrupted . | . . . . Allies Melted . | . . . . Intel | -11 -10 -9 -8 ------- Run | Yrd Mat Mat Mat Robot Analysis Total . | . . . . Derelict Logs Recovered . | . . . . Drone Launches . | . . . . Drone Recoveries . | . . . . Exploration | -11 -10 -9 -8 ------------- Run | Yrd Mat Mat Mat Turns Passed 1993 | 108 706 695 484 Spaces Moved 1255 | 63 487 436 269 Core 3 | 3 . . . Treads . | . . . . Legs . | . . . . Wheels 1252 | 60 487 436 269 Hover . | . . . . Flight . | . . . . Fastest Speed 50 | 50 80 110 105 Average Speed 105 | 78 99 112 112 Slowest Speed 150 | 80 110 125 150 Overloaded Moves . | . . . . Propulsion Burnouts . | . . . . Robots Hopped . | . . . . Cave-ins Triggered . | . . . . Exploration Rate (%) 36 | 4 77 42 22 Regions Visited 3 Branch Regions . Pre-discovered Areas . | . . . . Known Exits Taken 1 | . . 1 . Unknown Exits Taken 2 | 1 1 . . Scrap Searched . | . . . . Spaces Dug 5 | . 4 . 1 Terrain Destroyed 31 | . 8 22 1 Melee . | . . . . Projectile 10 | . 8 1 1 AOE 21 | . . 21 . Terrain Rammed . | . . . . Walls Destroyed . | . . . . Machines Disabled . | . . . . Actions | -11 -10 -9 -8 --------- Run | Yrd Mat Mat Mat Total 1632 | 96 590 562 384 Wait 92 | . 11 43 38 Move 1252 | 62 486 435 269 Hop . | . . . . Pick Up 50 | 13 16 13 8 Fast Attach 14 | . 3 5 6 Attach 26 | 7 . 5 14 Detach 2 | . . 1 1 Swap 12 | . 5 3 4 Drop 24 | . 8 13 3 Fire 156 | 14 61 44 37 Melee . | . . . . Ram 4 | . . . 4 Kick . | . . . . Crush . | . . . . Escape Stasis . | . . . . Rewire . | . . . . Trap . | . . . . Miscellaneous . | . . . . Route ------- -11/Scrapyard -10/Materials (discovered 5 exits: *Mat x3 / [*Min x2]) -9/Materials (discovered 5 exits: *Mat x3 / [*Min] / [*Sto]) -8/Materials History --------- Turn | Location | Event 14 | -11/Scrapyard | Discovered new exit (range 15) 109 | -11/Scrapyard | Entered Materials 109 | -10/Materials | Discovered new exit (range 8) 251 | -10/Materials | Discovered new exit (range 8) 308 | -10/Materials | Build established: Mutant 337 | -10/Materials | Discovered new exit (range 4) 443 | -10/Materials | Discovered new exit (range 7) 785 | -10/Materials | Discovered new exit (range 11) 815 | -10/Materials | Entered another Materials area 815 | -9/Materials | Evolved 2 slots: Utility x2 853 | -9/Materials | Discovered new exit (range 14) 1076 | -9/Materials | Identified exit to Materials 1091 | -9/Materials | Discovered new exit (range 13) 1102 | -9/Materials | Build established: Scavenger-Mutant 1510 | -9/Materials | Entered another Materials area 1510 | -8/Materials | Evolved 2 slots: Utility x2 1746 | -8/Materials | Lost 4 parts (1p1n1u1w) 1830 | -8/Materials | Core integrity fell below 50% 1899 | -8/Materials | Core integrity fell below 20% 1959 | -8/Materials | Lost 13 parts (3p2n4u4w) 1994 | -8/Materials | Destroyed by G-47 Trooper with Particle Gun Last Messages --------------- 01947_ O-24 Administrator uses terminal to summon reinforcements. 01947_ ALERT: Hostiles spotted, dispatching reinforcements to Terminal M001. 01947_ O-24 Administrator locks terminal. 01958_ Acquired Nuclear Core. 01964_ Acquired Pulse Rifle. 01971_ Imp. Terrain Scanner destroyed. 01971_ Critical hit (Burn: +37). 01972_ Com. Wheel destroyed. 01975_ Arm. Wheel destroyed. 01979_ Critical hit (Burn: +37). 01982_ Overheating: System interference. 01982_ Lgt. Assault Rifle temporarily disabled. 01982_ Pulse Rifle temporarily disabled. 01983_ Med. Armor Plating destroyed. 01983_ Critical hit (Burn: +37). 01991_ Machine Analyzer destroyed. 01993_ Nuclear Core destroyed. 01993_ Pulse Rifle destroyed. 01993_ G-47 Trooper destroyed. Map ----- +----------------------------------------------------+ | ???????????????????????????????? | | ???????????????????????????????? | | ???????????????????????????????? | | ???????????????????????????????? | | ???????????????????????????????? | | ???????????????????????????????? | | ???????????????????????????????? | | ???????????????????????????????? | | ???????????????????#???????????? | | ???????????#?????????????????#?? | | ???????????????????????????????? | | ??????????????T???###########??? | | ????????????? ???? #??? | | ?????????##??#????# #??? | | ????????? ???????# "" #?#? | | ????????# ???????# "" #??? | | ????????# ?????## "T #??? | | ????????# """???# "" #??? | | ????????# """""??+ "" #??? | | #???????# """""??# #??? | | ????????# """""??# #??? | | ?## ?##?# """???# ####+#####? | | ?##???### ??????# #??# g #? | | #?# #####/######## #??#%g"""#? | | #?# #??#= """#? | | #?####### #########+##??#@ """#? | | ####??#?# ###?? ? ???# #? | | ##?##?### ###?# ? ] ? # ## | | ##?####?# #####?? "" # #? | | #?#??#??# ##?##?""" ""?######## | | ?##???### #?#???""" T" ???##??? | | ######?## ####??""" "" ###?##?# | | #########/##### "" ??#?#??? | | # # # ????#???? | | # #% #########?#?#????# | | #"" =# = ###?# ##???????? | | #"T r# ##### ##??#???#? | | #"" # "T" ##### #????##?#? | | # =# ##### ########?? | | ####+#+####k####### # #?? | | ! # % ! # ### | | # # """ ##? | | + % + """ ##? | | # ###### # """ !### | | # # # # ### | | # %=+ # ########?# | | # =%# [[ # ##???##?#? | | # *# [ # ########## | | # # # """"" ########## | | #+## # # """"" # ! # | +----------------------------------------------------+ Best States ------------- Heat Dissipation 31 Energy Generation 14 Energy Capacity 250 Matter Stores 300 Matter Capacity 300 Sight Range 16 Terrain Scan Range 16 Terrain Scan Density 85 Armor Coverage 225 Evasion (%) 44 Item Schematics ----------------- Hrd. Light Armor Plating | -9/Materials | Scanalyzed Hacking Suite | -9/Materials | Scanalyzed System Shield | -9/Materials | Scanalyzed Arm. Wheel | -9/Materials | Scanalyzed Hvy. EM Pulse Gun | -9/Materials | Extracted Power Shielding | -9/Materials | Extracted Disposable Heat Sink | -9/Materials | Extracted Sensor Array | -9/Materials | Extracted Arm. Treads | -8/Materials | Scanalyzed Targeting Computer | -8/Materials | Scanalyzed Imp. Terrain Scanner | -8/Materials | Scanalyzed Med. Battery | -8/Materials | Scanalyzed Hcp. Matter Pod | -8/Materials | Extracted Ion Cannon | -8/Materials | Extracted Adv. Beam Rifle | -8/Materials | Extracted Med. Storage Unit | -8/Materials | Extracted Hrd. Medium Armor Plating | -8/Materials | Extracted Imp. Hover Unit | -8/Materials | Extracted Robot Schematics ------------------ None Fabricated ------------ Nothing Alien Tech Used ----------------- None Achievements -------------- None Challenges ------------ None Game ------ Seed AngularCouplerTendrils Manual? 0 Play Time 00:58:36 Cumulative 230.4 hours Start 2024.04.01 @ 21:38:32 End 2024.04.01 @ 22:49:52 Sessions 1 Manual Loads 0 Difficulty Rogue Special Mode None Game No. 103 Rogue 100 Adventurer 3 Explorer 0 Win Type - Total 0 Types 0/0/0/0/0/0/0/0/0 Lore% 28 Gallery% 52 Achievement% 36 Wizard Run 0 Options --------- Layout 0 ASCII 0 Keyboard 0 Movement Mouse Keybinds 0 Fullscreen 2 Font 18/SmallcapsGlow Map View 76x50 Zoom Use 0% Tactical HUD 1 Map Filters NONE Filters NONE Steam 1 RUN: 6287e960-3609-4959-beb3-2eebf881e548